fUST/lending_fUST_20250221
["ID","MTS","AMOUNT","RATE_DAILY","PERIOD"]
[353841009,1740088239993,-500.0,0.00013863,2]
[353841010,1740088240002,-500.7,0.00013863,2]
[353841011,1740088240011,-500.0,0.00013863,2]
[353841012,1740088240020,-500.0,0.00013863,2]
[353841013,1740088240029,-452.85473752,0.00013863,2]
[353841014,1740088240039,-500.0,0.00013863,2]
[353841015,1740088240048,-500.0,0.00013863,2]
[353841016,1740088240057,-500.0,0.00013863,2]
[353841017,1740088240066,-2153.48,0.00013863,2]
[353841018,1740088240075,-500.0,0.00013863,2]
[353841019,1740088240085,-996.28,0.00013863,2]
[353841020,1740088240094,-982.41,0.00013863,2]
[353841021,1740088240104,-500.0,0.00013863,2]
[353841022,1740088240113,-500.0,0.00013863,2]
[353841023,1740088240122,-500.0,0.00013863,2]
[353841024,1740088240131,-500.0,0.00013863,2]
[353841025,1740088240141,-506.83,0.00013863,2]
[353841026,1740088240150,-699.26,0.00013863,2]
[353841027,1740088240160,-500.0,0.00013863,2]
[353841028,1740088240169,-1291.67,0.00013863,2]
[353841029,1740088240179,-500.0,0.00013863,2]
[353841030,1740088240188,-500.0,0.00013863,2]
[353841031,1740088240197,-500.0,0.00013863,2]
[353841032,1740088240207,-500.0,0.00013863,2]
[353841033,1740088240217,-500.0,0.00013863,2]
[353841034,1740088240226,-920.89,0.00013863,2]
[353841035,1740088240235,-929.85,0.00013863,2]
[353841037,1740088240245,-500.0,0.00013863,2]
[353841039,1740088240255,-308.07590232,0.00013863,2]
[353841040,1740088240264,-500.0,0.00013863,2]
[353841041,1740088240274,-500.0,0.00013863,2]
[353841042,1740088240284,-1540.64,0.00013863,2]
[353841043,1740088240294,-971.44,0.00013863,2]
[353841044,1740088240303,-500.0,0.00013863,2]
[353841045,1740088240313,-500.0,0.00013863,2]
[353841046,1740088240323,-500.0,0.00013863,2]
[353841047,1740088240332,-1039.24,0.00013863,2]
[353841048,1740088240341,-497.4229373,0.00013863,2]
[353841049,1740088240351,-500.0,0.00013863,2]
[353841050,1740088240361,-1856.36,0.00013863,2]
[353841051,1740088240370,-500.0,0.00013863,2]
[353841052,1740088240381,-922.61,0.00013863,2]
[353841053,1740088240391,-500.0,0.00013863,2]
[353841054,1740088240401,-500.0,0.00013863,2]
[353841055,1740088240411,-500.0,0.00013863,2]
[353841056,1740088240421,-910.11,0.00013863,2]
[353841057,1740088240430,-500.0,0.00013863,2]
[353841058,1740088240440,-500.0,0.00013863,2]
[353841059,1740088240450,-768.68,0.00013863,2]
[353841060,1740088240460,-500.0,0.00013863,2]
[353841061,1740088240470,-641.09,0.00013863,2]
[353841062,1740088240480,-1568.78,0.00013863,2]
[353841063,1740088240490,-500.0,0.00013863,2]
[353841064,1740088240499,-500.0,0.00013863,2]
[353841065,1740088240509,-500.0,0.00013863,2]
[353841066,1740088240518,-1114.53,0.00013863,2]
[353841067,1740088240528,-500.0,0.00013863,2]
[353841068,1740088240538,-500.0,0.00013863,2]
[353841069,1740088240548,-500.0,0.00013863,2]
[353841070,1740088240557,-500.0,0.00013863,2]
[353841071,1740088240567,-930.92,0.00013863,2]
[353841072,1740088240576,-500.0,0.00013863,2]
[353841073,1740088240586,-500.0,0.00013863,2]
[353841074,1740088240595,-762.08,0.00013863,2]
[353841075,1740088240607,-500.0,0.00013863,2]
[353841076,1740088240616,-500.0,0.00013863,2]
[353841077,1740088240626,-500.0,0.00013863,2]
[353841078,1740088240638,-500.0,0.00013863,2]
[353841079,1740088240649,-500.0,0.00013863,2]
[353841080,1740088240659,-197.27879327,0.00013863,2]
[353841081,1740088240669,-699.9,0.00013863,2]
[353841082,1740088240679,-522.76,0.00013863,2]
[353841083,1740088240689,-500.0,0.00013863,2]
[353841084,1740088240698,-500.0,0.00013863,2]
[353841085,1740088240708,-500.0,0.00013863,2]
[353841086,1740088240718,-5055.08,0.00013863,2]
[353841087,1740088240727,-4197.12,0.00013863,2]
[353841088,1740088240737,-791.38,0.00013863,2]
[353841089,1740088240746,-359.46110431,0.00013863,2]
[353841090,1740088240756,-14686.26,0.00013863,2]
[353841091,1740088240765,-2312.94,0.00013863,2]
[353841092,1740088240775,-500.0,0.00013863,2]
[353841093,1740088240785,-500.0,0.00013863,2]
[353841094,1740088240795,-952.09,0.00013863,2]
[353841095,1740088240804,-1345.01,0.00013863,2]
[353841096,1740088240814,-1676.92,0.00013863,2]
[353841097,1740088240823,-511.23,0.00013863,2]
[353841098,1740088240834,-1397.44,0.00013863,2]
[353841099,1740088240844,-500.0,0.00013863,2]
[353841100,1740088240854,-404.48,0.00013863,2]
[353841101,1740088240864,-500.0,0.00013863,2]
[353841102,1740088240874,-545.61,0.00013863,2]
[353841103,1740088240884,-500.0,0.00013863,2]
[353841104,1740088240893,-51714.81,0.00013863,2]
[353841105,1740088240903,-1612.58,0.00013863,2]
[353841106,1740088240913,-3555.75,0.00013863,2]
[353841107,1740088240923,-2722.91,0.00013863,2]
[353841108,1740088240933,-500.0,0.00013863,2]
[353841109,1740088240942,-500.0,0.00013863,2]
[353841110,1740088240951,-979.31,0.00013863,2]
[353841111,1740088240961,-730.11,0.00013863,2]
[353841112,1740088240971,-500.0,0.00013863,2]
[353841113,1740088240980,-506.49934828,0.00013863,2]
[353841114,1740088240990,-1498.38,0.00013863,2]
[353841115,1740088241000,-4654.46,0.00013863,2]
[353841116,1740088241010,-445.62761201,0.00013863,2]
[353841117,1740088241020,-500.0,0.00013863,2]
[353841118,1740088241029,-9163.66,0.00013863,2]
[353841119,1740088241039,-500.0,0.00013863,2]
[353841120,1740088241050,-500.0,0.00013863,2]
[353841121,1740088241060,-500.0,0.00013863,2]
[353841122,1740088241070,-500.0,0.00013863,2]
[353841123,1740088241079,-631.58,0.00013863,2]
[353841124,1740088241089,-500.0,0.00013863,2]
[353841125,1740088241099,-500.0,0.00013863,2]
[353841126,1740088241110,-5099.76,0.00013863,2]
[353841127,1740088241119,-500.0,0.00013863,2]
[353841128,1740088241129,-500.0,0.00013863,2]
[353841129,1740088241139,-2653.04,0.00013863,2]
[353841130,1740088241149,-500.0,0.00013863,2]
[353841131,1740088241159,-500.0,0.00013863,2]
[353841132,1740088241170,-1859.56,0.00013863,2]
[353841133,1740088241180,-500.0,0.00013863,2]
[353841134,1740088241189,-818.57,0.00013863,2]
[353841135,1740088241199,-500.0,0.00013863,2]
[353841136,1740088241209,-805.79,0.00013863,2]
[353841137,1740088241219,-500.0,0.00013863,2]
[353841138,1740088241228,-4723.09,0.00013863,2]
[353841139,1740088241238,-1354.54,0.00013863,2]
[353841140,1740088241248,-500.0,0.00013863,2]
[353841141,1740088241258,-514.83592159,0.00013863,2]
[353841142,1740088241267,-1226.53,0.00013863,2]
[353841143,1740088241276,-384.5593178,0.00013863,2]
[353841144,1740088241743,-9398.14,0.0001378,2]
[353841145,1740088241753,-816.5806822,0.00013863,2]
[353841146,1740088241763,-479.36266501,0.00013863,2]
[353841147,1740088241772,-2170.78,0.00013863,2]
[353841148,1740088241782,-900.39,0.00013863,2]
[353841149,1740088241792,-500.0,0.00013863,2]
[353841150,1740088241917,-500.0,0.00013863,2]
[353841151,1740088241929,-378.3472983,0.00013863,2]
[353841152,1740088241938,-548.84,0.00013863,2]
[353841153,1740088241949,-500.0,0.00013863,2]
[353841154,1740088241959,-500.0,0.00013863,2]
[353841155,1740088241969,-371.33958002,0.00013863,2]
[353841156,1740088241979,-2914.58,0.00013863,2]
[353841157,1740088241988,-500.0,0.00013863,2]
[353841158,1740088241998,-500.0,0.00013863,2]
[353841159,1740088242007,-500.0,0.00013863,2]
[353841160,1740088242017,-713.87,0.00013863,2]
[353841161,1740088242027,-660.62,0.00013863,2]
[353841162,1740088242036,-500.0,0.00013863,2]
[353841163,1740088242046,-628.47,0.00013863,2]
[353841164,1740088242056,-18107.0366957,0.00013863,2]
[353841165,1740088242069,-4712.8233043,0.00013863,2]
[353841166,1740088242079,-500.0,0.00013863,2]
[353841167,1740088242089,-500.0,0.00013863,2]
[353841168,1740088242099,-979.86,0.00013863,2]
[353841169,1740088242109,-500.0,0.00013863,2]
[353841170,1740088242119,-500.0,0.00013863,2]
[353841171,1740088242128,-500.0,0.00013863,2]
[353841172,1740088242137,-2710.2,0.00013863,2]
[353841173,1740088242147,-1704.0,0.00013863,2]
[353841174,1740088242156,-500.0,0.00013863,2]
[353841175,1740088242166,-500.0,0.00013863,2]
[353841176,1740088242175,-875.1,0.00013863,2]
[353841177,1740088242185,-500.0,0.00013863,2]
[353841178,1740088242194,-560.68,0.00013863,2]
[353841179,1740088242203,-869.8,0.00013863,2]
[353841180,1740088242214,-6728.18,0.00013863,2]
[353841181,1740088242223,-681.92,0.00013863,2]
[353841182,1740088242233,-500.0,0.00013863,2]
[353841183,1740088242242,-2537.68,0.00013863,2]
[353841184,1740088242252,-1233.22,0.00013863,2]
[353841185,1740088242262,-500.0,0.00013863,2]
[353841186,1740088242272,-500.0,0.00013863,2]
[353841187,1740088242281,-500.0,0.00013863,2]
[353841188,1740088242291,-2223.25,0.00013863,2]
[353841189,1740088242301,-500.0,0.00013863,2]
[353841190,1740088242312,-500.0,0.00013863,2]
[353841191,1740088242321,-9398.14,0.00013863,2]
[353841192,1740088242331,-151.0,0.000139,2]
[353841193,1740088242341,-151.0,0.000139,2]
[353841194,1740088242350,-500.0,0.00013945,2]
[353841195,1740088242361,-500.0,0.00013945,2]
[353841196,1740088242371,-500.0,0.00013945,2]
[353841197,1740088242381,-500.0,0.00013945,2]
[353841198,1740088242390,-500.0,0.00013945,2]
[353841199,1740088242400,-500.0,0.00013945,2]
[353841200,1740088242410,-785.64,0.00013945,2]
[353841201,1740088242420,-500.0,0.00013945,2]
[353841202,1740088242431,-540.32,0.00013945,2]
[353841203,1740088242440,-500.0,0.00013945,2]
[353841204,1740088242450,-500.0,0.00013945,2]
[353841205,1740088242460,-676.18,0.00013945,2]
[353841206,1740088242470,-570.6,0.00013945,2]
[353841207,1740088242480,-500.0,0.00013945,2]
[353841208,1740088242490,-500.0,0.00013945,2]
[353841209,1740088242499,-738.99,0.00013945,2]
[353841210,1740088242509,-540.56,0.00013945,2]
[353841211,1740088242518,-500.0,0.00013945,2]
[353841212,1740088242528,-500.0,0.00013945,2]
[353841213,1740088242537,-500.0,0.00013945,2]
[353841214,1740088242547,-500.0,0.00013945,2]
[353841215,1740088242557,-371.04980612,0.00013945,2]
[353841216,1740088242567,-500.7,0.00013945,2]
[353841217,1740088242577,-500.0,0.00013945,2]
[353841218,1740088242586,-500.0,0.00013945,2]
[353841219,1740088242596,-519.7570156,0.00013945,2]
[353841220,1740088242605,-500.0,0.00013945,2]
[353841221,1740088242615,-2153.48,0.00013945,2]
[353841222,1740088242624,-500.0,0.00013945,2]
[353841223,1740088242634,-996.28,0.00013945,2]
[353841224,1740088242647,-982.41,0.00013945,2]
[353841225,1740088242656,-500.0,0.00013945,2]
[353841226,1740088242667,-500.0,0.00013945,2]
[353841227,1740088242678,-500.0,0.00013945,2]
[353841228,1740088242688,-500.0,0.00013945,2]
[353841229,1740088242697,-506.83,0.00013945,2]
[353841230,1740088242707,-699.26,0.00013945,2]
[353841231,1740088242717,-500.0,0.00013945,2]
[353841232,1740088242726,-1291.67,0.00013945,2]
[353841233,1740088242735,-500.0,0.00013945,2]
[353841235,1740088242745,-500.0,0.00013945,2]
[353841236,1740088242754,-500.0,0.00013945,2]
[353841238,1740088242763,-500.0,0.00013945,2]
[353841240,1740088242773,-920.89,0.00013945,2]
[353841242,1740088242783,-929.85,0.00013945,2]
[353841244,1740088242793,-500.0,0.00013945,2]
[353841245,1740088242802,-500.0,0.00013945,2]
[353841246,1740088242812,-500.0,0.00013945,2]
[353841247,1740088242821,-1540.64,0.00013945,2]
[353841248,1740088242831,-971.44,0.00013945,2]
[353841249,1740088242841,-500.0,0.00013945,2]
[353841250,1740088242850,-500.0,0.00013945,2]
[353841251,1740088242861,-1039.24,0.00013945,2]
[353841252,1740088242870,-500.0,0.00013945,2]
[353841254,1740088242880,-1856.36,0.00013945,2]
[353841256,1740088242889,-500.0,0.00013945,2]
[353841257,1740088242899,-922.61,0.00013945,2]
[353841258,1740088242908,-500.0,0.00013945,2]
[353841259,1740088242917,-500.0,0.00013945,2]
[353841260,1740088242926,-500.0,0.00013945,2]
[353841261,1740088242936,-910.11,0.00013945,2]
[353841262,1740088242945,-500.0,0.00013945,2]
[353841263,1740088242955,-768.68,0.00013945,2]
[353841264,1740088242968,-500.0,0.00013945,2]
[353841265,1740088242978,-641.09,0.00013945,2]
[353841266,1740088242987,-1568.78,0.00013945,2]
[353841267,1740088242996,-500.0,0.00013945,2]
[353841268,1740088243006,-500.0,0.00013945,2]
[353841269,1740088243015,-500.0,0.00013945,2]
[353841270,1740088243024,-1114.53,0.00013945,2]
[353841271,1740088243034,-500.0,0.00013945,2]
[353841272,1740088243043,-500.0,0.00013945,2]
[353841273,1740088243052,-415.35110411,0.00013945,2]
[353841274,1740088243061,-500.0,0.00013945,2]
[353841275,1740088243071,-930.92,0.00013945,2]
[353841276,1740088243080,-500.0,0.00013945,2]
[353841277,1740088243090,-500.0,0.00013945,2]
[353841278,1740088243099,-762.08,0.00013945,2]
[353841279,1740088243111,-547.87103451,0.00013945,2]
[353841280,1740088243120,-500.0,0.00013945,2]
[353841281,1740088243129,-500.0,0.00013945,2]
[353841282,1740088243138,-500.0,0.00013945,2]
[353841283,1740088243147,-699.9,0.00013945,2]
[353841284,1740088243157,-500.0,0.00013945,2]
[353841285,1740088243166,-500.0,0.00013945,2]
[353841286,1740088243175,-500.0,0.00013945,2]
[353841287,1740088243184,-5055.08,0.00013945,2]
[353841288,1740088243194,-4197.12,0.00013945,2]
[353841289,1740088243203,-791.38,0.00013945,2]
[353841290,1740088243213,-2312.94,0.00013945,2]
[353841291,1740088243222,-500.0,0.00013945,2]
[353841292,1740088243232,-500.0,0.00013945,2]
[353841293,1740088243242,-952.09,0.00013945,2]
[353841294,1740088243251,-1345.01,0.00013945,2]
[353841295,1740088243260,-1676.92,0.00013945,2]
[353841296,1740088243270,-511.23,0.00013945,2]
[353841297,1740088243279,-1397.44,0.00013945,2]
[353841298,1740088243289,-380.47740098,0.00013945,2]
[353841299,1740088243298,-500.0,0.00013945,2]
[353841300,1740088243307,-545.61,0.00013945,2]
[353841301,1740088243317,-500.0,0.00013945,2]
[353841302,1740088243326,-51714.81,0.00013945,2]
[353841303,1740088243335,-1612.58,0.00013945,2]
[353841304,1740088243346,-3555.75,0.00013945,2]
[353841305,1740088243356,-2722.91,0.00013945,2]
[353841306,1740088243366,-500.0,0.00013945,2]
[353841307,1740088243375,-500.0,0.00013945,2]
[353841308,1740088243384,-979.31,0.00013945,2]
[353841309,1740088243393,-730.11,0.00013945,2]
[353841310,1740088243402,-500.0,0.00013945,2]
[353841311,1740088243412,-1498.38,0.00013945,2]
[353841312,1740088243421,-4654.46,0.00013945,2]
[353841313,1740088243430,-500.0,0.00013945,2]
[353841314,1740088243439,-9163.66,0.00013945,2]
[353841315,1740088243448,-500.0,0.00013945,2]
[353841316,1740088243457,-500.0,0.00013945,2]
[353841317,1740088243465,-500.0,0.00013945,2]
[353841318,1740088243474,-325.56346102,0.00013945,2]
[353841319,1740088243483,-500.0,0.00013945,2]
[353841320,1740088243492,-631.58,0.00013945,2]
[353841321,1740088243502,-500.0,0.00013945,2]
[353841322,1740088243511,-5099.76,0.00013945,2]
[353841323,1740088243520,-500.0,0.00013945,2]
[353841324,1740088243529,-500.0,0.00013945,2]
[353841325,1740088243538,-2653.04,0.00013945,2]
[353841326,1740088243547,-500.0,0.00013945,2]
[353841327,1740088243557,-500.0,0.00013945,2]
[353841328,1740088243566,-1859.56,0.00013945,2]
[353841329,1740088243575,-500.0,0.00013945,2]
[353841330,1740088243585,-818.57,0.00013945,2]
[353841331,1740088243595,-500.0,0.00013945,2]
[353841332,1740088243605,-805.79,0.00013945,2]
[353841333,1740088243614,-501.82936904,0.00013945,2]
[353841334,1740088243624,-4723.09,0.00013945,2]
[353841335,1740088243634,-1354.54,0.00013945,2]
[353841336,1740088243647,-500.0,0.00013945,2]
[353841337,1740088243658,-1226.53,0.00013945,2]
[353841338,1740088243667,-1201.14,0.00013945,2]
[353841339,1740088243676,-2170.78,0.00013945,2]
[353841340,1740088243686,-900.39,0.00013945,2]
[353841341,1740088243695,-501.01678089,0.00013945,2]
[353841342,1740088243704,-500.0,0.00013945,2]
[353841343,1740088243715,-548.84,0.00013945,2]
[353841344,1740088243724,-500.0,0.00013945,2]
[353841345,1740088243734,-500.0,0.00013945,2]
[353841346,1740088243743,-2914.58,0.00013945,2]
[353841347,1740088243752,-500.0,0.00013945,2]
[353841348,1740088243762,-502.46514565,0.00013945,2]
[353841349,1740088243771,-713.87,0.00013945,2]
[353841350,1740088243780,-660.62,0.00013945,2]
[353841351,1740088243789,-500.0,0.00013945,2]
[353841352,1740088243799,-628.47,0.00013945,2]
[353841353,1740088243808,-22819.86,0.00013945,2]
[353841354,1740088243818,-500.0,0.00013945,2]
[353841355,1740088243827,-421.52766294,0.00013945,2]
[353841356,1740088243836,-979.86,0.00013945,2]
[353841357,1740088243845,-500.0,0.00013945,2]
[353841358,1740088243855,-500.0,0.00013945,2]
[353841359,1740088243864,-500.0,0.00013945,2]
[353841360,1740088243873,-2710.2,0.00013945,2]
[353841361,1740088243882,-1704.0,0.00013945,2]
[353841362,1740088243891,-500.0,0.00013945,2]
[353841363,1740088243901,-500.0,0.00013945,2]
[353841364,1740088243911,-875.1,0.00013945,2]
[353841365,1740088243920,-500.0,0.00013945,2]
[353841366,1740088243929,-560.68,0.00013945,2]
[353841367,1740088243938,-869.8,0.00013945,2]
[353841368,1740088243949,-6728.18,0.00013945,2]
[353841369,1740088243958,-681.92,0.00013945,2]
[353841370,1740088243967,-502.24315677,0.00013945,2]
[353841371,1740088243976,-2537.68,0.00013945,2]
[353841372,1740088243986,-1233.22,0.00013945,2]
[353841373,1740088243995,-500.0,0.00013945,2]
[353841374,1740088244004,-500.0,0.00013945,2]
[353841375,1740088244014,-2223.25,0.00013945,2]
[353841376,1740088244023,-500.0,0.00013945,2]
[353841377,1740088244032,-500.0,0.00013945,2]
[353841378,1740088244041,-9398.14,0.00013945,2]
[353841379,1740088244050,-669.33383376,0.0001399,2]
[353841380,1740088244059,-669.33383376,0.00013994,2]
[353841381,1740088244068,-669.33383376,0.00013997,2]
[353841382,1740088244077,-587.0,0.00014021,2]
[353841383,1740088244086,-500.0,0.00014027,2]
[353841384,1740088244096,-447.52513472,0.00014027,2]
[353841385,1740088244105,-500.0,0.00014027,2]
[353841386,1740088244116,-499.37484569,0.00014027,2]
[353841387,1740088244125,-500.0,0.00014027,2]
[353841388,1740088244134,-785.64,0.00014027,2]
[353841389,1740088244143,-500.0,0.00014027,2]
[353841390,1740088244153,-540.32,0.00014027,2]
[353841391,1740088244259,-500.0,0.00014027,2]
[353841392,1740088244269,-197.59974818,0.00014027,2]
[353841393,1740088244279,-676.18,0.00014027,2]
[353841394,1740088244288,-570.6,0.00014027,2]
[353841395,1740088244298,-506.47308693,0.00014027,2]
[353841396,1740088244308,-500.0,0.00014027,2]
[353841397,1740088244318,-738.99,0.00014027,2]
[353841398,1740088244327,-540.56,0.00014027,2]
[353841399,1740088244336,-500.0,0.00014027,2]
[353841400,1740088244346,-500.0,0.00014027,2]
[353841401,1740088244356,-500.0,0.00014027,2]
[353841402,1740088244366,-500.0,0.00014027,2]
[353841403,1740088244376,-500.7,0.00014027,2]
[353841404,1740088244385,-500.0,0.00014027,2]
[353841405,1740088244394,-500.0,0.00014027,2]
[353841406,1740088244403,-500.0,0.00014027,2]
[353841407,1740088244414,-2153.48,0.00014027,2]
[353841408,1740088244423,-500.0,0.00014027,2]
[353841409,1740088244432,-996.28,0.00014027,2]
[353841410,1740088244442,-982.41,0.00014027,2]
[353841411,1740088244452,-500.0,0.00014027,2]
[353841412,1740088244461,-500.0,0.00014027,2]
[353841413,1740088244470,-500.0,0.00014027,2]
[353841414,1740088244479,-506.83,0.00014027,2]
[353841415,1740088244489,-699.26,0.00014027,2]
[353841416,1740088244498,-500.0,0.00014027,2]
[353841417,1740088244507,-1291.67,0.00014027,2]
[353841418,1740088244517,-500.0,0.00014027,2]
[353841419,1740088244526,-500.0,0.00014027,2]
[353841420,1740088244535,-500.0,0.00014027,2]
[353841421,1740088244544,-500.0,0.00014027,2]
[353841422,1740088244554,-920.89,0.00014027,2]
[353841423,1740088244563,-929.85,0.00014027,2]
[353841424,1740088244572,-500.0,0.00014027,2]
[353841425,1740088244581,-520.48,0.00014027,2]
[353841426,1740088244590,-500.0,0.00014027,2]
[353841427,1740088244600,-1540.64,0.00014027,2]
[353841428,1740088244611,-971.44,0.00014027,2]
[353841429,1740088244621,-500.0,0.00014027,2]
[353841430,1740088244631,-500.0,0.00014027,2]
[353841431,1740088244642,-1039.24,0.00014027,2]
[353841432,1740088244652,-500.0,0.00014027,2]
[353841433,1740088244661,-1856.36,0.00014027,2]
[353841434,1740088244670,-500.0,0.00014027,2]
[353841435,1740088244679,-922.61,0.00014027,2]
[353841436,1740088244690,-500.0,0.00014027,2]
[353841437,1740088244699,-502.48918186,0.00014027,2]
[353841438,1740088244708,-500.0,0.00014027,2]
[353841439,1740088244718,-910.11,0.00014027,2]
[353841440,1740088244729,-500.0,0.00014027,2]
[353841441,1740088244738,-768.68,0.00014027,2]
[353841442,1740088244748,-641.09,0.00014027,2]
[353841443,1740088244758,-1568.78,0.00014027,2]
[353841444,1740088244767,-500.0,0.00014027,2]
[353841445,1740088244776,-500.0,0.00014027,2]
[353841446,1740088244785,-500.0,0.00014027,2]
[353841447,1740088244795,-1114.53,0.00014027,2]
[353841448,1740088244805,-500.0,0.00014027,2]
[353841449,1740088244814,-500.0,0.00014027,2]
[353841450,1740088244823,-181.18589493,0.00014027,2]
[353841451,1740088244832,-930.92,0.00014027,2]
[353841452,1740088244841,-500.0,0.00014027,2]
[353841453,1740088244850,-248.74217373,0.00014027,2]
[353841454,1740088244859,-762.08,0.00014027,2]
[353841455,1740088244868,-500.0,0.00014027,2]
[353841456,1740088244878,-500.0,0.00014027,2]
[353841457,1740088244887,-500.0,0.00014027,2]
[353841458,1740088244897,-699.9,0.00014027,2]
[353841459,1740088244906,-507.19303599,0.00014027,2]
[353841460,1740088244915,-500.0,0.00014027,2]
[353841461,1740088244924,-5055.08,0.00014027,2]
[353841462,1740088244934,-4197.12,0.00014027,2]
[353841463,1740088244943,-791.38,0.00014027,2]
[353841464,1740088244952,-2312.94,0.00014027,2]
[353841465,1740088244962,-500.0,0.00014027,2]
[353841466,1740088244971,-506.13785597,0.00014027,2]
[353841467,1740088244980,-952.09,0.00014027,2]
[353841468,1740088244989,-1345.01,0.00014027,2]
[353841469,1740088244998,-1676.92,0.00014027,2]
[353841470,1740088245008,-511.23,0.00014027,2]
[353841471,1740088245017,-1397.44,0.00014027,2]
[353841472,1740088245026,-500.0,0.00014027,2]
[353841473,1740088245034,-545.61,0.00014027,2]
[353841474,1740088245044,-500.0,0.00014027,2]
[353841475,1740088245053,-51714.81,0.00014027,2]
[353841476,1740088245063,-1612.58,0.00014027,2]
[353841477,1740088245073,-3555.75,0.00014027,2]
[353841478,1740088245082,-2722.91,0.00014027,2]
[353841479,1740088245093,-500.0,0.00014027,2]
[353841480,1740088245102,-500.0,0.00014027,2]
[353841481,1740088245113,-979.31,0.00014027,2]
[353841482,1740088245122,-730.11,0.00014027,2]
[353841483,1740088245132,-500.0,0.00014027,2]
[353841484,1740088245141,-1498.38,0.00014027,2]
[353841485,1740088245151,-4654.46,0.00014027,2]
[353841486,1740088245160,-500.0,0.00014027,2]
[353841487,1740088245170,-9163.66,0.00014027,2]
[353841488,1740088245180,-500.0,0.00014027,2]
[353841489,1740088245190,-500.0,0.00014027,2]
[353841490,1740088245199,-500.0,0.00014027,2]
[353841491,1740088245209,-631.58,0.00014027,2]
[353841492,1740088245219,-500.0,0.00014027,2]
[353841493,1740088245228,-500.0,0.00014027,2]
[353841494,1740088245238,-5099.76,0.00014027,2]
[353841495,1740088245248,-500.0,0.00014027,2]
[353841496,1740088245258,-500.0,0.00014027,2]
[353841497,1740088245268,-2653.04,0.00014027,2]
[353841498,1740088245278,-633.67506021,0.00014027,2]
[353841499,1740088245287,-500.00000001,0.00014027,2]
[353841500,1740088245297,-1859.56,0.00014027,2]
[353841501,1740088245307,-500.0,0.00014027,2]
[353841502,1740088245317,-818.57,0.00014027,2]
[353841503,1740088245326,-500.0,0.00014027,2]
[353841504,1740088245336,-805.79,0.00014027,2]
[353841505,1740088245346,-4723.09,0.00014027,2]
[353841506,1740088245356,-1354.54,0.00014027,2]
[353841507,1740088245368,-1226.53,0.00014027,2]
[353841508,1740088245377,-1201.14,0.00014027,2]
[353841509,1740088245387,-2170.78,0.00014027,2]
[353841510,1740088245396,-900.39,0.00014027,2]
[353841511,1740088245405,-500.0,0.00014027,2]
[353841512,1740088245415,-548.84,0.00014027,2]
[353841513,1740088245424,-500.0,0.00014027,2]
[353841514,1740088245433,-2914.58,0.00014027,2]
[353841515,1740088245443,-500.0,0.00014027,2]
[353841516,1740088245453,-713.87,0.00014027,2]
[353841517,1740088245463,-660.62,0.00014027,2]